bitfinex-derivatives/quotes_ETHF0:USTF0_20250209
["timestamp","ask_amount","ask_price","bid_price","bid_amount"]
[1739143178307,3.2078,2621.5,2621.2,0.00571483]
[1739143178508,0.7629,2621.2,2620.4,3.2078]
[1739143178711,5.4508,2621.2,2620.6,3.2078]
[1739143178911,6.2137,2621.2,2620.6,3.2078]
[1739143179407,5.4508,2621.2,2620.6,3.2078]
[1739143179606,4.00914345,2621.1,2620.6,0.00571483]
[1739143179808,4.00914345,2621.1,2620.6,3.21351483]
[1739143180714,4.00914345,2621.1,2620.6,0.00571483]
[1739143180904,0.6962,2621.0,2620.6,0.00571483]
[1739143181100,4.00914345,2621.1,2620.7,3.2078]
[1739143181306,3.2078,2621.3,2620.7,3.2078]
[1739143181506,0.76291,2621.2,2620.6,3.21351483]
[1739143181804,4.86704799,2621.2,2620.6,0.00571483]
[1739143182408,3.2078,2621.0,2620.6,0.00571483]
[1739143182805,0.7518,2620.9,2620.6,0.00571483]
[1739143184113,6.62226772,2620.8,2620.6,0.00571483]
[1739143184317,3.2078,2620.7,2620.0,3.2078]
[1739143184522,0.76307,2620.6,2620.0,3.2078]
[1739143184712,0.76311,2620.5,2619.9,3.2078]
[1739143185016,3.2078,2620.4,2619.7,0.7008]
[1739143185319,3.2078,2620.4,2619.9,3.2078]
[1739143185522,0.00571483,2620.3,2619.9,3.2078]
[1739143185714,0.00571483,2620.3,2619.8,0.00571483]
[1739143185918,0.00571483,2620.3,2620.0,3.2078]
[1739143186219,0.00571483,2620.3,2619.8,0.00571483]
[1739143186909,4.27002763,2620.2,2619.8,0.00571483]
[1739143187108,3.21351483,2620.3,2619.8,0.00571483]
[1739143188021,0.00571483,2620.3,2619.8,0.00571483]
[1739143188911,0.00571483,2620.3,2619.9,3.2078]
[1739143189309,3.2078,2621.2,2620.1,3.99581499]
[1739143189616,5.4498,2621.2,2620.1,3.99581499]
[1739143189918,4.93725607,2621.1,2620.2,44.0078]
[1739143190325,4.93725607,2621.1,2620.3,0.6915]
[1739143190517,0.00571483,2620.9,2620.4,0.00571483]
[1739143191321,0.00571483,2620.9,2620.5,3.2078]
[1739143192121,3.59491483,2620.9,2620.4,0.00571483]
[1739143192417,3.21351483,2620.9,2620.4,0.00571483]
[1739143192623,0.76305,2620.7,2620.4,0.00571483]
[1739143193121,7.57761158,2620.6,2620.4,0.00571483]
[1739143193521,0.7637,2620.5,2620.4,0.00571483]
[1739143197628,4.14819,2620.5,2620.4,0.00571483]
[1739143197815,8.31060154,2620.5,2620.4,0.00571483]
[1739143198539,0.76316,2620.3,2619.6,0.749]
[1739143198923,0.3814,2620.4,2619.6,0.749]
[1739143199118,0.3814,2620.1,2619.5,3.2078]
[1739143199426,8.50926028,2620.3,2619.5,3.2078]
[1739143199626,9.27241028,2620.3,2619.5,3.21351483]
[1739143199823,8.50926028,2620.3,2619.5,3.21351483]
[1739143200421,3.2078,2620.3,2619.8,3.2078]
[1739143200627,0.7637,2620.5,2619.9,0.7267]
[1739143200826,3.2078,2620.3,2619.9,0.7267]
[1739143201424,3.5892,2620.3,2619.9,0.7267]
[1739143201920,4.35237,2620.3,2619.9,0.7267]
[1739143202230,4.35236,2620.3,2619.5,0.31391398]
[1739143202433,4.35236,2620.3,2619.5,1.03351398]
[1739143202733,3.5892,2620.3,2619.5,1.03351398]
[1739143202931,3.2078,2620.3,2619.5,1.03351398]
[1739143203133,3.5892,2620.3,2619.5,1.03351398]
[1739143205734,4.35237,2620.3,2619.5,1.03351398]
[1739143205935,3.5892,2620.3,2619.5,1.03351398]
[1739143208128,4.35236,2620.3,2619.5,1.03351398]
[1739143208324,3.5892,2620.3,2619.5,1.03351398]
[1739143208538,0.3814,2620.2,2619.5,1.03351398]
[1739143208835,3.97105,2620.0,2619.5,0.72531483]
[1739143209033,3.2078,2620.0,2619.5,0.72531483]
[1739143209233,3.2078,2619.7,2619.5,0.00571483]
[1739143209531,0.76335,2619.7,2619.5,0.00571483]
[1739143209736,4.03191043,2619.6,2619.5,0.00571483]
[1739143209936,3.97115,2619.7,2619.5,0.00571483]
[1739143210126,3.2078,2619.7,2619.5,0.00571483]
[1739143210331,3.97113,2619.7,2619.5,0.00571483]
[1739143210532,3.2078,2619.7,2619.5,0.00571483]
[1739143210733,3.5892,2619.7,2619.5,0.00571483]
[1739143211929,3.2078,2619.7,2619.5,0.00571483]
[1739143212135,0.7725,2619.9,2619.5,0.00571483]
[1739143213936,3.2078,2620.0,2619.5,0.00571483]
[1739143214137,2.237,2620.2,2619.5,0.00571483]
[1739143217138,5.8252,2620.3,2619.5,0.00571483]
[1739143217539,1.1446,2620.2,2619.5,0.00571483]
[1739143217949,0.3814,2620.2,2619.5,0.00571483]
[1739143219241,5.4438,2620.3,2619.6,3.2078]
[1739143219443,5.4438,2620.3,2619.6,3.9385]
[1739143223039,5.4438,2620.3,2619.5,0.00571483]
[1739143223040,3.2078,2619.7,2619.5,0.00571483]
[1739143223243,3.3602,2619.6,2618.3,3.2078]
[1739143223552,0.76372,2618.4,2617.7,3.2078]
[1739143223751,3.12632447,2618.2,2617.4,3.2078]
[1739143223943,3.12632447,2617.9,2617.0,3.2078]
[1739143224145,4.24063691,2618.1,2617.5,3.2078]
[1739143224348,0.00572607,2617.7,2617.5,3.9771]
[1739143225057,0.00572607,2617.7,2617.5,9.9771]
[1739143225249,0.7549,2618.7,2617.5,9.9771]
[1739143225451,2.234,2618.6,2617.9,3.2078]
[1739143225652,4.24064258,2618.5,2618.2,3.2078]
[1739143225850,3.9103,2618.9,2618.2,3.2078]
[1739143226154,3.2078,2618.9,2618.5,3.2078]
[1739143227547,3.2078,2618.9,2618.3,0.7693]
[1739143227752,3.9625,2618.9,2618.3,0.7693]
[1739143229054,3.9625,2618.9,2618.3,1.07905907]
[1739143230360,4.28962933,2618.8,2618.1,3.2078]
[1739143231360,4.00530219,2618.7,2617.7,3.9827]
[1739143231558,3.2078,2618.6,2617.7,3.9827]
[1739143231761,0.7362,2618.5,2617.7,3.9827]
[1739143232655,0.7362,2618.5,2617.7,3.2078]
[1739143232656,3.2078,2618.3,2617.7,3.2078]
[1739143232854,5.4408,2618.3,2617.5,0.30046203]
[1739143233054,0.7771,2618.2,2617.6,3.2078]
[1739143234357,0.7362,2618.5,2618.0,3.2078]
[1739143234564,3.0091,2618.7,2618.0,3.2078]
[1739143234857,7.2769262,2618.7,2618.1,0.7505]
[1739143235657,5.0449262,2618.7,2618.1,0.7505]
[1739143236064,0.7484,2618.6,2618.1,0.7505]
[1739143237061,5.0449262,2618.7,2618.1,0.7505]
[1739143237268,0.7771,2618.7,2618.3,3.2078]
[1739143240164,7.20289349,2618.6,2618.0,3.2078]
[1739143240361,7.96655349,2618.6,2617.8,0.29926029]
[1739143240568,7.20289349,2618.6,2617.7,3.2078]
[1739143241059,0.7771,2618.7,2617.9,3.2078]
[1739143241371,7.44819278,2618.6,2617.5,3.2078]
[1739143241663,3.2078,2618.3,2617.5,0.7312]
[1739143241965,0.7042,2618.2,2617.5,0.7312]
[1739143242163,3.2078,2618.0,2617.2,3.21352607]
[1739143242359,0.747,2617.9,2617.2,0.00572607]
[1739143242559,4.93781659,2617.9,2617.3,3.2078]
[1739143243769,4.93781659,2617.9,2617.2,0.31283678]
[1739143244968,4.93781659,2617.9,2617.2,3.52063678]
[1739143245163,4.93781659,2617.9,2617.5,3.2078]
[1739143245369,0.747,2617.9,2617.5,3.2078]
[1739143246269,0.747,2617.9,2617.2,3.52063678]
[1739143246576,4.31699738,2617.8,2617.2,3.52063678]
[1739143247268,0.747,2617.9,2617.2,3.52063678]
[1739143248575,0.747,2617.9,2617.5,3.2078]
[1739143248769,3.2078,2618.3,2617.8,3.2078]
[1739143249076,7.12192496,2618.6,2618.1,3.2078]
[1739143249371,2.9351,2618.6,2618.1,3.2078]
[1739143250164,0.7061,2618.6,2618.1,3.2078]
[1739143253376,3.9139,2618.6,2618.1,3.2078]
[1739143253575,4.760422,2618.5,2617.8,3.9566]
[1739143253775,3.996722,2618.5,2617.5,3.2078]
[1739143253976,4.00530219,2618.4,2617.5,3.2078]
[1739143254173,0.76382,2618.0,2617.3,0.7594]
[1739143254376,3.688,2617.9,2617.3,0.7594]
[1739143254578,8.11198623,2617.9,2617.3,0.7594]
[1739143254878,8.87584623,2617.9,2617.3,0.7594]
[1739143255074,3.2078,2617.4,2617.2,0.00572607]
[1739143255377,0.7097,2617.3,2617.2,0.00572607]
[1739143255780,0.76407,2617.2,2615.9,3.21794615]
[1739143256086,4.00530219,2616.3,2615.9,3.2078]
[1739143256277,4.00530219,2616.3,2615.2,3.2078]
[1739143256278,2.228,2616.2,2615.2,3.2078]
[1739143256477,6.50043779,2616.2,2615.2,3.2078]
[1739143256985,0.00572607,2616.0,2615.5,3.2078]
[1739143257187,0.00129917,2616.0,2615.5,3.2078]
[1739143258080,2.58549694,2616.5,2615.9,3.2078]
[1739143258281,2.58549694,2616.5,2616.2,3.2078]
[1739143258483,2.58549694,2616.5,2616.1,3.2078]
[1739143258484,2.227,2616.5,2616.1,3.2078]
[1739143258890,2.227,2616.5,2615.8,3.2078]
[1739143259086,0.694,2616.7,2615.8,7.21310219]
[1739143259387,0.00572607,2616.4,2616.3,3.2078]
[1739143260478,7.58725874,2616.4,2615.4,3.21352607]
[1739143260678,3.2078,2616.1,2615.4,3.51987566]
[1739143260884,0.76441,2616.0,2615.4,0.00572607]
[1739143261091,5.08653267,2616.0,2615.4,0.00572607]
[1739143261286,8.29433267,2616.0,2615.4,0.00572607]
[1739143264789,2.227,2615.9,2615.4,3.21352607]
[1739143265383,2.227,2615.9,2615.4,0.00572607]
[1739143265584,4.0823273,2615.8,2615.4,0.00572607]
[1739143267391,2.227,2617.2,2615.7,3.2078]
[1739143267591,2.227,2617.2,2616.3,7.21310219]
[1739143267790,3.8845,2617.4,2616.8,3.2078]
[1739143267987,0.6767,2617.4,2616.8,3.2078]
[1739143268185,0.6767,2617.4,2616.8,44.0078]
[1739143268494,0.6767,2617.4,2616.8,3.2078]
[1739143268688,2.227,2618.1,2617.2,7.21310219]
[1739143268889,2.227,2618.1,2617.6,3.2078]
[1739143269091,4.16023109,2618.0,2617.3,3.2078]
[1739143269995,0.00571856,2617.9,2617.3,3.2078]
[1739143270190,0.00571856,2617.9,2616.8,4.46498912]
[1739143270191,3.2078,2617.5,2616.8,0.00572607]
[1739143270392,3.2078,2617.2,2616.8,0.00572607]
[1739143270792,4.37797433,2617.1,2616.8,0.00572607]
[1739143271691,3.2078,2617.2,2616.8,0.00572607]
[1739143271692,2.9551,2617.4,2616.8,0.00572607]
[1739143272394,4.03600443,2617.3,2616.8,0.00572607]
[1739143272897,7.24380443,2617.3,2616.8,0.00572607]
[1739143277804,0.131412,2617.2,2616.8,0.00572607]
[1739143278001,0.06570664,2617.2,2616.8,0.00572607]
[1739143278198,4.42877886,2617.1,2616.8,0.00572607]
[1739143281499,3.27350891,2617.0,2616.0,3.2078]
[1739143281806,0.06571138,2616.9,2616.0,3.2078]
[1739143282000,4.18290643,2616.9,2616.4,3.2078]
[1739143282199,0.06570664,2617.2,2616.4,3.2078]
[1739143282506,4.28291877,2617.1,2616.9,3.2078]
[1739143282909,0.06570664,2617.2,2616.9,3.2078]
[1739143283706,3.2078,2617.8,2617.0,0.6442]
[1739143284100,7.57639094,2617.8,2617.0,0.6442]
[1739143284699,9.41358094,2617.8,2617.0,0.6442]
[1739143285299,8.64969094,2617.8,2617.0,0.6442]
[1739143287307,2.222,2617.7,2617.0,0.6442]
[1739143287908,4.05540058,2617.6,2617.0,0.6442]
[1739143289700,2.222,2617.7,2617.0,0.6442]
[1739143291008,2.222,2617.7,2617.0,0.95665674]
[1739143292206,2.222,2617.7,2617.2,3.2078]
[1739143294508,0.6919,2617.8,2617.2,3.2078]
[1739143295611,0.00571856,2617.9,2617.5,3.2078]
[1739143295917,2.22,2618.5,2617.8,3.2078]
[1739143296115,2.22,2618.5,2618.1,3.2078]
[1739143296714,0.691,2618.7,2618.4,3.2078]
[1739143296910,0.00572607,2618.6,2618.4,3.2078]
[1739143297607,0.00572607,2618.6,2618.1,3.2078]
[1739143297910,0.00572607,2618.6,2618.4,3.2078]
[1739143299305,0.00572607,2618.6,2618.1,3.2078]
[1739143301216,0.00572607,2618.6,2618.5,3.2078]
[1739143306409,0.00572607,2618.6,2618.0,0.00572607]
[1739143306611,0.76369,2618.5,2618.0,0.00572607]
[1739143306816,5.4248,2618.4,2618.0,0.00572607]
[1739143307113,0.76375,2618.3,2618.0,0.00572607]
[1739143307418,4.77281865,2618.3,2618.0,0.00572607]
[1739143307623,4.00905865,2618.3,2618.0,0.00572607]
[1739143311119,4.77279865,2618.3,2618.0,0.00572607]
[1739143311914,4.00905865,2618.3,2618.0,0.00572607]
[1739143312115,3.2078,2618.1,2617.4,0.6759]
[1739143312316,4.72085865,2618.0,2617.3,3.2078]
[1739143312512,0.642,2617.9,2617.3,3.2078]
[1739143312709,4.18983231,2618.0,2617.3,3.2078]
[1739143312917,3.2078,2618.1,2617.3,3.2078]
[1739143313224,4.77280865,2618.3,2617.4,0.00572607]
[1739143313622,4.05510059,2618.2,2617.4,0.00572607]
[1739143313821,3.2078,2618.1,2617.4,0.00572607]
[1739143314118,4.77297865,2617.7,2617.4,0.00572607]
[1739143314427,3.2078,2617.5,2617.4,0.00572607]
[1739143315021,7.53677085,2617.5,2617.4,0.00572607]
[1739143315217,8.19267085,2617.5,2617.4,0.00572607]
[1739143316624,4.98487085,2617.5,2617.4,0.00572607]
[1739143319929,5.74884085,2617.5,2617.4,0.00572607]
[1739143320125,0.76405,2617.3,2616.5,3.2078]
[1739143320327,4.77310865,2617.3,2616.5,3.2078]
[1739143320524,4.12539946,2617.2,2616.5,3.2078]
[1739143320720,8.09727946,2617.2,2616.5,3.2078]
[1739143320920,7.33319946,2617.2,2616.5,3.2078]
[1739143321327,0.00572607,2617.1,2616.6,0.00572607]
[1739143321827,4.23068529,2617.0,2616.6,0.00572607]
[1739143322825,6.44468529,2617.0,2616.6,0.00572607]
[1739143323024,3.2078,2616.9,2616.6,0.00572607]
[1739143323223,0.7642,2616.7,2616.6,0.00572607]
[1739143323629,8.83476937,2616.7,2616.6,0.00572607]
[1739143323929,8.07056937,2616.7,2616.6,0.00572607]
[1739143326018,3.8746,2616.9,2616.6,0.00572607]
[1739143327127,4.63875,2616.9,2616.6,0.00572607]
[1739143327426,4.2781664,2616.8,2616.6,0.00572607]
[1739143327822,5.0423364,2616.8,2616.6,0.00572607]
[1739143328531,4.2781664,2616.8,2616.6,0.00572607]
[1739143329026,4.2781664,2616.8,2616.2,3.2078]
[1739143329027,0.76426,2616.5,2616.2,3.2078]
[1739143329223,3.97204,2616.6,2616.2,3.2078]
[1739143329427,3.2078,2616.6,2616.2,3.2078]
[1739143329623,7.25793749,2616.6,2615.7,0.7052]
[1739143329825,3.97213,2616.3,2615.6,0.7094]
[1739143330031,6.18413,2616.3,2615.6,0.7094]
[1739143330331,0.76438,2616.1,2615.7,0.00572607]
[1739143330629,3.97221,2616.0,2615.7,0.00572607]
[1739143330826,8.23108919,2616.0,2615.7,0.00572607]
[1739143331126,7.46667919,2616.0,2615.7,0.00572607]
[1739143331319,2.212,2616.4,2615.9,3.2078]
[1739143331730,4.38956712,2616.4,2615.9,3.2078]
[1739143331926,2.212,2616.7,2616.0,0.6456]
[1739143332224,4.38956712,2616.6,2616.3,4.00905865]
[1739143332526,0.00572607,2617.1,2616.5,3.2078]
[1739143332722,0.00572607,2617.1,2616.4,0.6794]
[1739143333640,6.5152715,2617.0,2616.4,0.6794]
[1739143333932,13.73213015,2617.0,2616.4,0.6794]
[1739143334127,4.00905865,2616.7,2616.4,0.6794]
[1739143334331,7.21685865,2616.7,2616.4,0.6794]
[1739143334527,4.06353956,2616.6,2616.4,0.6794]
[1739143334733,4.06353956,2616.6,2615.7,0.00572607]
[1739143335230,4.00905865,2616.4,2615.7,0.00572607]
[1739143335633,4.32292983,2616.3,2615.7,0.00572607]
[1739143336032,7.21685865,2616.1,2615.7,0.00572607]
[1739143336428,7.59825865,2616.1,2615.7,0.00572607]
[1739143336732,4.27932892,2616.0,2615.7,0.00572607]
[1739143337435,0.6787,2616.2,2615.7,0.00572607]
[1739143337833,4.4049802,2616.1,2615.7,0.00572607]
[1739143339130,7.25835865,2617.0,2615.8,3.2078]
[1739143339327,7.25835865,2617.0,2615.9,0.6448]
[1739143339628,11.49849364,2617.0,2615.9,0.6448]
[1739143339834,11.49849364,2617.0,2616.2,3.2078]
[1739143340028,1.14556,2616.9,2615.9,3.8526]
[1739143340233,3.2078,2616.7,2615.9,3.8526]
[1739143341028,2.211,2616.9,2616.2,3.2078]
[1739143342238,2.211,2616.9,2616.3,0.7014]
[1739143342430,4.66595865,2617.0,2616.3,0.7014]
[1739143342734,4.21544015,2616.9,2616.3,0.7014]
[1739143343130,4.21544015,2616.9,2616.5,3.2078]
[1739143343338,0.00572607,2617.1,2616.5,3.2078]
[1739143343538,0.00572607,2617.1,2616.8,3.2078]
[1739143343734,0.00572607,2617.1,2616.9,4.65945865]
[1739143344041,0.00572607,2617.1,2617.0,0.7014]
[1739143345533,0.35834411,2618.0,2617.0,6.7014]
[1739143345726,0.35834411,2618.0,2617.9,3.2078]
[1739143345934,1.3436,2618.5,2617.9,3.2078]
[1739143346332,1.3436,2618.5,2618.0,0.6828]
[1739143346333,4.26188058,2618.4,2618.0,0.6828]
[1739143346534,0.6445,2618.5,2618.0,0.6828]
[1739143346832,0.00572607,2618.5,2618.2,3.2078]
[1739143348440,3.2078,2619.3,2618.2,13.21685865]
[1739143348737,2.208,2619.9,2618.8,3.2078]
[1739143349033,4.02753594,2619.8,2619.1,3.2078]
[1739143349237,4.02753594,2619.8,2618.9,0.6718]
[1739143349535,4.73883594,2619.9,2618.9,0.6718]
[1739143349834,0.00572607,2619.6,2619.1,0.00572607]
[1739143351638,3.2078,2619.3,2619.1,0.00572607]
[1739143351830,1.3775,2619.2,2619.1,0.00572607]
[1739143352030,5.60740011,2619.2,2619.1,0.00572607]
[1739143352535,0.00572607,2619.6,2619.1,0.00572607]
[1739143353038,4.16318762,2619.5,2619.1,0.00572607]
[1739143353435,4.16318762,2619.5,2619.3,3.2078]
[1739143353642,0.00572607,2619.6,2619.3,3.2078]
[1739143353838,0.00572607,2619.6,2619.4,4.00905865]
[1739143354044,4.5853,2620.4,2619.4,4.77246865]
[1739143354229,4.5853,2620.4,2619.7,3.2078]
[1739143355031,0.00572607,2620.3,2619.7,3.2078]
[1739143355442,0.00572607,2620.3,2620.0,3.2078]
[1739143358244,0.76324,2620.0,2619.0,3.2078]
[1739143358435,0.76324,2620.0,2618.7,4.00905865]
[1739143358436,3.2078,2619.8,2618.7,7.21685865]
[1739143358644,3.2078,2619.8,2619.0,3.2078]
[1739143358843,4.03392836,2619.7,2619.0,3.2078]
[1739143362847,4.03392836,2619.7,2618.7,3.2078]
[1739143363743,3.2078,2619.5,2618.7,3.5113313]
[1739143364142,4.09892711,2619.4,2618.7,3.5113313]
[1739143365646,4.09892711,2619.4,2618.7,0.3035313]
[1739143365944,3.2078,2619.5,2618.7,3.2078]
[1739143366340,4.28599012,2619.4,2618.7,3.2078]
[1739143366637,5.2633,2619.9,2619.0,3.2078]
[1739143366841,3.2078,2619.6,2618.7,3.2078]
[1739143367238,4.22489847,2619.5,2618.7,3.2078]
[1739143367849,3.2078,2619.3,2618.7,3.2078]
[1739143368045,7.21685865,2619.0,2618.0,0.31108835]
[1739143368346,5.34612557,2619.2,2618.1,3.2078]
[1739143368539,4.22489847,2618.9,2618.1,3.2078]
[1739143368942,4.08195766,2619.1,2618.1,3.2078]
[1739143369144,0.00572607,2618.8,2618.2,0.00572607]
[1739143369450,4.11143097,2618.7,2618.2,0.00572607]
[1739143374740,2.201,2618.6,2618.1,3.2078]
[1739143374942,0.7639,2617.8,2617.2,3.51617118]
[1739143375147,2.13261,2617.7,2616.9,3.2078]
[1739143375446,5.37429281,2617.7,2616.9,3.2078]
[1739143375642,0.76395,2617.6,2616.9,3.2078]
[1739143375948,0.76401,2617.4,2617.0,0.00572607]
[1739143376442,4.77201517,2617.5,2617.0,0.00572607]
[1739143376950,4.00803517,2617.5,2617.0,0.00572607]
[1739143377649,4.77202517,2617.5,2617.0,0.00572607]
[1739143377848,4.00803517,2617.5,2617.0,0.00572607]
[1739143378048,0.6926,2617.4,2617.0,0.00572607]
[1739143378547,3.97367996,2617.3,2617.0,0.00572607]
[1739143379046,0.00572607,2617.5,2617.2,3.2078]
[1739143379242,0.7098,2618.1,2617.2,3.2078]
[1739143379443,0.7098,2618.1,2617.6,3.2078]
[1739143380445,0.71552607,2618.1,2617.6,3.2078]
[1739143380639,0.71552607,2618.1,2617.9,3.2078]
[1739143380844,0.00572607,2618.1,2617.9,3.2078]
[1739143381843,0.00572607,2618.1,2618.0,0.6661]
[1739143384243,0.00572607,2618.1,2617.4,3.2078]
[1739143384451,0.00572607,2618.1,2616.7,0.6765]
[1739143384452,0.00572607,2618.1,2617.7,3.2078]
[1739143384654,4.07921425,2618.0,2617.4,3.2078]
[1739143385043,0.00572607,2618.1,2617.4,3.2078]
[1739143386547,4.00182196,2618.0,2617.1,4.18523194]
[1739143386850,4.76566196,2618.0,2617.1,4.18523194]
[1739143387052,4.00182196,2618.0,2617.6,3.2078]
[1739143387253,0.00572607,2618.1,2617.6,3.2078]
[1739143388246,0.00572607,2618.1,2617.6,3.51654056]
[1739143389849,0.00572607,2618.1,2618.0,3.2078]
[1739143390945,0.00572607,2618.1,2617.3,3.2078]
[1739143391146,3.2078,2617.9,2617.3,3.2078]
[1739143391452,1.2966,2617.8,2617.3,3.2078]
[1739143391643,5.53971122,2617.8,2617.3,3.2078]
[1739143391953,1.2966,2617.8,2617.3,3.2078]
[1739143392549,0.764,2617.4,2617.0,0.00572607]
[1739143392854,7.33315492,2617.3,2617.0,0.00572607]
[1739143393150,4.77313865,2617.1,2617.0,0.00572607]
[1739143393450,4.77315865,2617.1,2616.1,3.8926]
[1739143393666,3.4936,2617.0,2616.1,3.8926]
[1739143394153,4.12126717,2616.9,2616.1,3.8926]
[1739143394353,7.32906717,2616.9,2616.1,3.8926]
[1739143394549,0.00572607,2616.8,2616.2,0.00572607]
[1739143394946,4.39151917,2616.7,2616.2,0.00572607]
[1739143398760,5.15573917,2616.7,2616.2,0.00572607]
[1739143398951,4.39151917,2616.7,2616.2,0.00572607]
[1739143399147,4.00905865,2616.5,2616.2,0.00572607]
[1739143399356,0.76432,2616.3,2616.2,0.00572607]
[1739143399659,7.21685865,2616.5,2616.2,0.00572607]
[1739143399660,4.79919865,2616.4,2616.2,0.00572607]
[1739143400253,0.7091,2616.3,2616.2,0.00572607]
[1739143401553,0.7091,2616.3,2616.2,3.21352607]
[1739143401955,2.8853,2616.6,2616.2,3.21352607]
[1739143403250,0.71482607,2616.8,2616.2,3.21352607]
[1739143403557,4.03659521,2616.7,2616.2,3.21352607]
[1739143405260,0.00572607,2616.8,2616.6,3.2078]
[1739143407362,0.00572607,2616.8,2616.3,3.2078]
[1739143407363,4.06988814,2616.7,2616.3,3.2078]
[1739143407859,0.00572607,2616.8,2616.3,3.2078]
[1739143409160,0.00572607,2616.8,2616.6,3.2078]
[1739143412657,0.00572607,2616.8,2616.4,0.7093]
[1739143413261,0.00572607,2616.8,2616.2,3.21352607]
[1739143415558,0.76422,2616.7,2616.2,3.21352607]
[1739143415756,7.57357373,2616.7,2616.2,0.00572607]
[1739143415961,4.00905865,2616.5,2616.2,0.00572607]
[1739143416259,1.38,2616.6,2616.2,0.00572607]
[1739143416563,4.36577373,2616.4,2616.2,0.00572607]
[1739143417060,1.38,2616.6,2616.2,0.00572607]
[1739143417459,4.99397056,2616.5,2616.2,0.00572607]
[1739143417658,4.22970056,2616.5,2616.2,0.00572607]
[1739143417858,4.99396056,2616.5,2616.2,0.00572607]
[1739143418054,4.22970056,2616.5,2616.2,0.00572607]
[1739143419254,4.99397056,2616.5,2616.2,0.00572607]
[1739143420063,3.9721,2616.4,2616.2,0.00572607]
[1739143420255,0.76432,2616.3,2616.2,0.00572607]
[1739143420456,4.42676538,2616.3,2616.2,0.00572607]
[1739143420762,4.78526155,2616.3,2616.2,0.00572607]
[1739143421258,0.35849617,2616.3,2616.2,0.00572607]
[1739143421560,3.2078,2616.5,2616.2,0.00572607]
[1739143421756,3.8636,2616.5,2616.2,0.00572607]
[1739143421958,7.88392449,2616.5,2616.2,0.00572607]
[1739143422557,4.00905865,2616.3,2615.4,0.30885341]
[1739143422854,0.06522012,2616.4,2614.6,3.2078]
[1739143422855,0.76463,2615.3,2614.6,3.2078]
[1739143423162,4.87476678,2615.2,2614.3,3.2078]
[1739143423655,0.6986,2615.2,2614.3,3.2078]
[1739143423861,0.00572607,2615.0,2614.5,0.00572607]
[1739143424158,0.00572607,2615.0,2614.6,3.2078]
[1739143424960,0.00572607,2615.0,2614.5,0.00572607]
[1739143425360,0.00572607,2615.0,2614.5,3.21352607]
[1739143426162,0.00572607,2615.0,2614.9,3.2078]
[1739143426658,3.2078,2616.2,2615.1,0.76465]
[1739143426864,1.3397,2616.1,2615.7,3.2078]
[1739143427052,5.67422022,2616.1,2615.7,3.2078]
[1739143427259,7.89875865,2616.6,2615.8,40.8]
[1739143427459,8.56385865,2616.6,2616.0,3.2078]
[1739143427763,4.33452022,2616.5,2616.0,0.00572607]
[1739143428859,4.33452022,2616.5,2616.0,3.21352607]
[1739143429257,0.67082607,2616.6,2616.0,3.21352607]
[1739143429561,3.2078,2616.3,2616.0,0.00572607]
[1739143432261,7.21685865,2616.3,2616.0,0.00572607]
[1739143432467,4.03251511,2616.2,2616.0,0.00572607]
[1739143434467,5.3998,2616.3,2616.0,0.00572607]
[1739143434768,2.191,2616.4,2616.0,0.00572607]
[1739143434970,0.6791,2616.5,2616.0,0.00572607]
[1739143435271,4.38402505,2616.4,2616.2,3.2078]
[1739143435471,0.00572607,2616.6,2616.2,3.2078]
[1739143435970,0.00572607,2616.6,2616.5,3.2078]
[1739143438267,7.99428657,2616.6,2616.0,3.21352607]
[1739143438474,1.3856,2616.5,2616.0,3.21352607]
[1739143438677,3.98522792,2616.6,2616.0,3.21352607]
[1739143438972,0.00572607,2616.6,2616.5,3.2078]
[1739143439567,0.00572607,2616.6,2616.3,3.2078]
[1739143439970,0.00572607,2616.6,2616.0,0.31038214]
[1739143440180,0.00572607,2616.6,2616.0,0.00572607]
[1739143443966,0.76996607,2616.6,2616.0,0.00572607]
[1739143444172,0.00572607,2616.6,2616.0,0.00572607]
[1739143450474,0.7643,2616.4,2616.0,0.00572607]
[1739143450668,1.3331,2616.3,2616.0,0.00572607]
[1739143453082,0.35844205,2616.5,2616.2,3.2078]
[1739143453377,3.2078,2617.1,2616.2,3.2078]
[1739143453674,3.2078,2617.1,2616.5,3.2078]
[1739143454470,3.21352607,2617.1,2616.5,3.2078]
[1739143454670,0.00572607,2617.1,2616.5,3.2078]
[1739143454980,0.00572607,2617.1,2616.9,3.2078]
[1739143455576,0.00572607,2617.1,2617.0,0.6504]
[1739143455775,2.187,2617.6,2617.0,0.6504]
[1739143457183,2.19272607,2617.6,2617.0,0.6504]
[1739143458774,3.2078,2617.5,2617.0,0.6504]
[1739143459073,4.39165865,2617.1,2616.4,3.2078]
[1739143459379,3.2078,2616.9,2615.9,0.6597]
[1739143459580,5.3938,2616.9,2615.9,0.6597]
[1739143459781,4.39119732,2616.8,2615.9,0.6597]
[1739143460179,4.39119732,2616.8,2615.9,0.97072157]
[1739143461080,3.2078,2616.6,2615.9,0.6597]
[1739143461481,4.42739655,2616.5,2615.9,0.6597]
[1739143462679,3.2078,2616.9,2616.1,3.2078]
[1739143462878,3.2078,2616.9,2616.4,3.2078]
[1739143463779,4.00905865,2617.4,2616.4,3.2078]
[1739143463980,4.6389,2617.5,2616.7,3.2078]
[1739143464183,4.2563,2617.5,2616.7,3.2078]
[1739143464386,4.19971591,2617.4,2616.7,3.2078]
[1739143464891,8.56710312,2617.4,2616.7,3.2078]
[1739143465091,9.33110312,2617.4,2616.6,3.2078]
[1739143465283,11.41657456,2617.4,2616.6,3.2078]
[1739143465678,0.35836007,2617.3,2616.6,3.2078]
[1739143466083,3.2078,2616.9,2616.3,3.2078]
[1739143466479,1.3323,2616.8,2616.3,3.2078]
[1739143466684,12.4809026,2616.8,2616.3,3.2078]
[1739143467680,13.2450826,2616.8,2616.3,3.2078]
[1739143468181,12.4809026,2616.8,2616.3,3.2078]
[1739143468381,0.7642,2616.7,2616.3,3.2078]
[1739143468787,4.16622183,2616.6,2616.3,3.2078]
[1739143468992,4.77331865,2616.5,2616.3,3.2078]
[1739143469394,4.01307046,2616.4,2616.3,3.2078]
[1739143471295,4.01307046,2616.4,2616.0,0.00572607]